Cogmind - Beta 14 @@@ ROGUE MODE // 2024.12.26 @ 00:49:44 Player: Golinth Result: Destroyed by H-55 Commando with Gauss Rifle Performance ------------- Evolutions (1) 500 Regions Visited (4) 800 Robots Destroyed (25) 125 Value Destroyed (489) 489 Prototype IDs (0) 0 Alien Tech Used (0) 0 Bonus (200) 200 TOTAL SCORE: 2114 Bonus ------- Entered Garrisons 200 Cogmind --------- Core Integrity 0/400 Matter 187/300 Energy 100/100 System Corruption 1% Temperature Cool (0) Movement Core (100) Ox1 Location -9/Garrison Parts ------- > --- POWER (1) -------- (None) > --- PROPULSION (2) --- (None) > --- UTILITY (4) ------ Small Storage Unit Visual Processing Unit Signal Interpreter Hacking Suite > --- WEAPON (2) ------- (None) > --- INVENTORY (8) ---- Sensor Array Peak State ------------ > --- POWER ------------ Light Ion Engine > --- PROPULSION ------- Improved Hover Unit Improved Hover Unit > --- UTILITY ---------- Small Storage Unit Visual Processing Unit Signal Interpreter Hacking Suite > --- WEAPON ----------- Small Laser Light Assault Rifle > --- INVENTORY -------- Light Ion Engine Improved Hover Unit Improved Hover Unit Improved Hover Unit Sensor Array Mining Laser Mining Laser [Rating: 15] Favorites ----------- Power Ion Engine Engine Ion Engine Propulsion Aluminum Leg Leg Aluminum Leg Hover Unit Improved Hover Unit Flight Unit Flight Unit Utility Small Storage Unit Storage Small Storage Unit Processor Signal Interpreter Hackware Hacking Suite Weapon EM Pulse Gun Energy Gun EM Pulse Gun Ballistic Gun Light Assault Rifle Launcher Grenade Launcher Special Weapon Mining Laser Build | -11 -10 -9 -9 -9 ------- Run | Yrd Mat Mat Sto Gar Slots Evolved 2 | . . 2 . . Power . | . . . . . Propulsion . | . . . . . Utility 2 | . . 2 . . Weapon . | . . . . . Parts Attached 41 | 7 14 3 10 7 Power 4 | 1 1 . 1 1 Engine 4 | 1 1 . 1 1 Core . | . . . . . Reactor . | . . . . . Propulsion 13 | 2 2 . 6 3 Treads . | . . . . . Leg 6 | 2 2 . . 2 Wheel . | . . . . . Hover 5 | . . . 4 1 Flight 2 | . . . 2 . Utility 4 | 1 1 2 . . Device . | . . . . . Storage 1 | 1 . . . . Processor 2 | . 1 1 . . Hackware 1 | . . 1 . . Protection . | . . . . . Artifact . | . . . . . Weapon 20 | 3 10 1 3 3 Energy Gun 12 | 3 7 . 1 1 Energy Cannon . | . . . . . Ballistic Gun 2 | . . . 2 . Ballistic Cannon . | . . . . . Launcher 2 | . 2 . . . Special Weapon 4 | . 1 1 . 2 Impact Weapon . | . . . . . Slashing Weapon . | . . . . . Piercing Weapon . | . . . . . Special Melee Weapon . | . . . . . Unidentified Prototypes . | . . . . . Parts Lost 24 | . 8 1 3 12 Power 4 | . 1 1 . 2 Propulsion 10 | . 3 . 2 5 Utility . | . . . . . Weapon 10 | . 4 . 1 5 Highest Loss Streak 14 | . 5 1 2 14 To Critical Strikes . | . . . . . Average Slot Usage (%) 86 | . 91 77 84 74 Engine 11 | . 13 11 6 3 Leg 16 | . 27 . . 6 Hover 2 | . . . 10 8 Storage 12 | . 14 11 11 11 Processor 13 | . 6 22 22 22 Hackware 4 | . . 11 11 11 Energy Gun 19 | . 25 18 9 . Ballistic Gun 2 | . . . 9 12 Special Weapon 1 | . . 3 2 . Peak Build Rating 15 | 6 8 10 15 14 Average Rating 8 | 4 6 9 11 11 On Entrance 6 | . 6 5 9 14 Naked Turns . | . . . . . Heaviest Build 14 | 13 14 12 10 10 Greatest Support 20 | 20 20 3 14 20 Greatest Overweight (x) 3 | 1 3 3 3 1 Average Overweight (x) . | . . 2 . . Largest Inventory Capacity 8 | 8 8 8 8 8 Average Capacity 7 | 7 8 8 8 8 Most Carried 8 | 5 8 4 8 7 Average Carried 4 | 1 5 3 4 3 Final Capacity 8 | 8 8 8 8 8 Final Carried 6 | 2 5 3 6 1 Class Distribution -------------------- 86% | Mutant 13% | Scavenger-Mutant Dominant Class ---------------- Mutant | -10/Materials Mutant | -9/Materials Scavenger-Mutant | -9/Storage Mutant | -9/Garrison Resources | -11 -10 -9 -9 -9 ----------- Run | Yrd Mat Mat Sto Gar Matter Collected 442 | 242 88 . 53 59 Remotely . | . . . . . Salvage Created 496 | . 288 . 80 128 Parts 46 | . 31 . 9 6 Haulers Intercepted . | . . . . . Recyclers Shooed . | . . . . . Parts Field Recycled . | . . . . . Retrieved Matter . | . . . . . Parts Self-Destructed . | . . . . . Prevented . | . . . . . Kills | -11 -10 -9 -9 -9 ------- Run | Yrd Mat Mat Sto Gar Combat Hostiles Destroyed 20 | . 11 . 6 3 Guns 13 | . 4 . 6 3 AOE 7 | . 7 . . . Classes Destroyed 7 | . 6 . . 1 Builder 1 | . 1 . . . Tunneler 1 | . 1 . . . Operator 1 | . 1 . . . Watcher 2 | . 2 . . . Swarmer 13 | . 7 . 6 . Grunt 6 | . 4 . . 2 Sentry 1 | . . . . 1 Best Kill Streak 7 | . 7 . 3 3 Combat Bots Only 3 | . 3 . 3 3 Max Kills in Single Turn 2 | . 2 . 1 1 Gunslinging . | . . . . . Exploded 2 | . 2 . . . Melee . | . . . . . Uniques/NPCs Destroyed . | . . . . . Combat | -11 -10 -9 -9 -9 -------- Run | Yrd Mat Mat Sto Gar Hostile Shots Fired 246 | . 116 11 34 85 Missed 55 | . 26 3 9 17 Damage Taken 2084 | . 859 92 260 873 Core 521 | . 115 32 57 317 Absorbed by Shields . | . . . . . Core Remaining (%) 77 | 100 54 . . . Volleys Fired 64 | . 38 3 11 12 Largest 2 | . 2 2 2 2 Hottest 140 | . 100 140 80 120 Shots Fired 114 | . 66 6 21 21 Gun 99 | . 55 3 21 20 Cannon . | . . . . . Launcher 8 | . 8 . . . Special 7 | . 3 3 . 1 Kinetic 29 | . . . 10 19 Thermal 37 | . 18 6 11 2 Explosive 8 | . 8 . . . Electromagnetic 40 | . 40 . . . Robot Hit Streak 23 | . 4 . 7 23 Robot Miss Streak 5 | . 5 . 2 . Penetration Max . | . . . . . Secondary Targets 2 | . 1 . 1 . Max Gunslinging Chain 1 | . 1 . 1 . Shots Hit Robots 61 | . 27 . 14 20 Core Hits 47 | . 25 . 8 14 Critical Kills . | . . . . . Critical Parts Destroyed 1 | . . . . 1 Critical Strikes 3 | . 2 . . 1 Destroy 1 | . . . . 1 Corrupt 2 | . 2 . . . Melee Attacks . | . . . . . Impact . | . . . . . Slashing . | . . . . . Piercing . | . . . . . Sneak Attacks . | . . . . . Combat Hostiles . | . . . . . Follow-up Attacks . | . . . . . Damage Inflicted 1425 | . 1086 . 146 193 Guns 565 | . 284 . 137 144 Cannons . | . . . . . Explosions 787 | . 787 . . . Melee . | . . . . . Ramming 49 | . 15 . 9 25 Kinetic 183 | . . . 51 132 Thermal 351 | . 229 . 86 36 Explosive 620 | . 620 . . . Electromagnetic 222 | . 222 . . . Impact . | . . . . . Slashing . | . . . . . Piercing . | . . . . . Highest Corruption 1 | . . . . 1 Average Corruption 1 | . . . . 1 Corruption Purged . | . . . . . Corruption Blocked . | . . . . . Overload Shots . | . . . . . Overflow Damage 31 | . 31 . . . Projectiles . | . . . . . Explosions 31 | . 31 . . . Melee . | . . . . . Knockbacks . | . . . . . Impact . | . . . . . Kinetic . | . . . . . Secondary . | . . . . . Self-Inflicted Damage 116 | . 101 . 4 11 Shots 4 | . 4 . . . Rammed 11 | . . . 2 9 Targets Rammed 14 | . 3 . 2 9 Kicked 3 | . 3 . . . Crushed . | . . . . . Highest Temperature 96 | . 96 25 20 22 Average Temperature 20 | . 24 12 11 8 Received Heat Transfer 279 | . 72 51 54 102 Siege Activations . | . . . . . Robots Corrupted . | . . . . . Combat Hostiles . | . . . . . Parts Fried . | . . . . . Impact Corruptions . | . . . . . Robots Melted . | . . . . . Combat Hostiles . | . . . . . Parts Melted 1 | . . . 1 . Heat Transferred 625 | . 350 . 200 75 Parts Sabotaged . | . . . . . Parts Stolen . | . . . . . Parts Stripped . | . . . . . Power Chain Reactions 4 | . 4 . . . Alert | -11 -10 -9 -9 -9 ------- Run | Yrd Mat Mat Sto Gar Peak Influence 434 | . 434 115 196 144 Initial 114 | . . 109 44 114 Average 155 | . 207 110 115 104 Maximum Alert Level 2 | . 2 . . . Low Security (%) 64 | 100 32 100 100 100 Level 1 34 | . 63 . . . Level 2 1 | . 3 . . . Level 3 . | . . . . . Level 4 . | . . . . . Level 5 . | . . . . . High Security . | . . . . . Max Security . | . . . . . Squads Dispatched 4 | . 3 . 1 . Investigation . | . . . . . Extermination . | . . . . . Reinforcement 3 | . 3 . . . Assault . | . . . . . Garrison 1 | . . . 1 . Intercept . | . . . . . Searches Triggered . | . . . . . Construction Impeded . | . . . . . Haulers Reinforced . | . . . . . Active Scanning Responses . | . . . . . Cargo Convoy Interrupts . | . . . . . Stealth | -11 -10 -9 -9 -9 --------- Run | Yrd Mat Mat Sto Gar Distress Signals 2 | . 1 1 . . Communications Jammed . | . . . . . Distress Signals . | . . . . . Times Spotted 43 | . 24 5 9 5 Peak Tracking Total 7 | . 7 5 4 4 Tactical Retreats 6 | . 5 . 1 . Traps | -11 -10 -9 -9 -9 ------- Run | Yrd Mat Mat Sto Gar Traps Triggered . | . . . . . Indirectly . | . . . . . Trap Hack Attempts . | . . . . . Triggered . | . . . . . Disarmed . | . . . . . Reprogrammed . | . . . . . Reused . | . . . . . Traps Extracted . | . . . . . Installed . | . . . . . Triggered . | . . . . . Machines | -11 -10 -9 -9 -9 ---------- Run | Yrd Mat Mat Sto Gar Machines Disabled 6 | . 6 . . . Max in Single Turn 3 | . 3 . . . Machines Repaired . | . . . . . Machines Dismantled . | . . . . . Machines Sabotaged . | . . . . . Overloaded Fab Kills . | . . . . . Hacking | -11 -10 -9 -9 -9 --------- Run | Yrd Mat Mat Sto Gar Machines Accessed 5 | . . 1 4 . Terminals 4 | . . 1 3 . Fabricators . | . . . . . Repair Stations . | . . . . . Recycling Units . | . . . . . Scanalyzers . | . . . . . Garrison Access 1 | . . . 1 . Total Hacks 12 | . . 5 7 . Successful 8 | . . 4 4 . Failed 4 | . . 1 3 . Catastrophic . | . . . . . Database Lockouts . | . . . . . Manual 3 | . . 1 2 . Terminals 10 | . . 5 5 . Fabricators . | . . . . . Repair Stations . | . . . . . Recycling Units . | . . . . . Scanalyzers . | . . . . . Garrison Access 2 | . . . 2 . Terminal Hacks 4 | . . 3 1 . Record 1 | . . 1 . . Open Door 1 | . . . 1 . Maintenance Status 1 | . . 1 . . Zone Layout 1 | . . 1 . . Fabricator Hacks . | . . . . . Repair Station Hacks . | . . . . . Recycling Unit Hacks . | . . . . . Scanalyzer . | . . . . . Garrison Access Hacks 1 | . . . 1 . Unlock Access 1 | . . . 1 . Unauthorized Hacks 3 | . . 1 2 . Terminals 3 | . . 1 2 . Botnet 3 | . . 1 2 . Fabricators . | . . . . . Repair Stations . | . . . . . Recycling Units . | . . . . . Scanalyzers . | . . . . . Garrison Access . | . . . . . Data Cores Recovered . | . . . . . Used . | . . . . . Hacking Detections 2 | . . 1 1 . Full Trace Events . | . . . . . Feedback Events . | . . . . . Feedback Blocked . | . . . . . Robot Schematics Acquired . | . . . . . Robots Built . | . . . . . Authchips . | . . . . . Time . | . . . . . Total Robot Build Rating . | . . . . . Part Schematics Acquired . | . . . . . Parts Built . | . . . . . Authchips . | . . . . . Time . | . . . . . Total Part Build Rating . | . . . . . Parts Repaired . | . . . . . Time . | . . . . . Parts Recycled . | . . . . . Recycled Matter . | . . . . . Retrieved Matter . | . . . . . Retrieved Components . | . . . . . Parts Scanalyzed . | . . . . . Part Schematics Acquired . | . . . . . Parts Damaged . | . . . . . Bothacking | -11 -10 -9 -9 -9 ------------ Run | Yrd Mat Mat Sto Gar Used RIF Installer . | . . . . . Robots Hacked . | . . . . . Non-combat . | . . . . . Combat . | . . . . . Robot Hacks Applied . | . . . . . Relay Couplers Released . | . . . . . Fabnet Peak Effective % . | . . . . . Robots Rewired . | . . . . . Allies Hacked . | . . . . . Hacks Repelled . | . . . . . Allies | -11 -10 -9 -9 -9 -------- Run | Yrd Mat Mat Sto Gar Total Allies . | . . . . . Largest Group . | . . . . . Highest-Rated Group . | . . . . . Highest-Rated Ally . | . . . . . Total Orders . | . . . . . Ally Attacks . | . . . . . Total Damage . | . . . . . Kills . | . . . . . Allies Corrupted . | . . . . . Allies Melted . | . . . . . Intel | -11 -10 -9 -9 -9 ------- Run | Yrd Mat Mat Sto Gar Robot Analysis Total . | . . . . . Derelict Logs Recovered . | . . . . . Drone Launches . | . . . . . Drone Recoveries . | . . . . . Exploration | -11 -10 -9 -9 -9 ------------- Run | Yrd Mat Mat Sto Gar Turns Passed 1059 | 72 567 187 146 87 Spaces Moved 613 | 49 341 85 92 46 Core 140 | 16 4 85 33 2 Treads . | . . . . . Legs 374 | 33 337 . . 4 Wheels . | . . . . . Hover 91 | . . . 51 40 Flight 8 | . . . 8 . Fastest Speed 50 | 50 120 150 56 56 Average Speed 123 | 114 121 199 95 70 Slowest Speed 200 | 190 200 200 200 120 Overloaded Moves . | . . . . . Propulsion Burnouts . | . . . . . Robots Hopped . | . . . . . Cave-ins Triggered . | . . . . . Exploration Rate (%) 16 | 4 45 14 12 7 Regions Visited 4 Branch Regions 1 Pre-discovered Areas . | . . . . . Known Exits Taken 3 | . 1 1 1 . Unknown Exits Taken 1 | 1 . . . . Scrap Searched . | . . . . . Spaces Dug 6 | . 3 3 . . Terrain Destroyed 61 | . 58 3 . . Melee . | . . . . . Projectile 6 | . 3 3 . . AOE 55 | . 55 . . . Terrain Rammed . | . . . . . Walls Destroyed . | . . . . . Machines Disabled . | . . . . . Actions | -11 -10 -9 -9 -9 --------- Run | Yrd Mat Mat Sto Gar Total 787 | 66 421 90 129 81 Wait 18 | . 11 . 2 5 Move 609 | 48 340 84 91 46 Hop . | . . . . . Pick Up 34 | 9 12 . 11 2 Fast Attach . | . . . . . Attach 30 | 7 8 2 6 7 Detach 2 | 1 1 . . . Swap 11 | . 6 1 4 . Drop 5 | 1 2 . 2 . Fire 64 | . 38 3 11 12 Melee . | . . . . . Ram 11 | . . . 2 9 Kick 3 | . 3 . . . Crush . | . . . . . Escape Stasis . | . . . . . Rewire . | . . . . . Trap . | . . . . . Miscellaneous . | . . . . . Route ------- -11/Scrapyard -10/Materials (discovered 3 exits: *Mat x2 / *Min) -9/Materials -9/Storage -9/Garrison History --------- Turn | Location | Event 9 | -11/Scrapyard | Discovered new exit (range 16) 73 | -11/Scrapyard | Entered Materials 200 | -10/Materials | Discovered new exit (range 11) 301 | -10/Materials | Discovered new exit (range 15) 319 | -10/Materials | Build established: Mutant 362 | -10/Materials | Identified exit to Mines 415 | -10/Materials | Discovered new exit (range 7) 638 | -10/Materials | Identified exit to Materials 640 | -10/Materials | Entered another Materials area 640 | -9/Materials | Evolved 2 slots: Utility x2 665 | -9/Materials | Lost 5 parts (1p2n2w) 813 | -9/Materials | Discovered new exit (range 8) 825 | -9/Materials | Identified exit to Storage 827 | -9/Materials | Entered Storage 949 | -9/Storage | Identified exit to Garrison 962 | -9/Storage | Garrison activated, responded to threat 973 | -9/Storage | Entered Garrison 983 | -9/Garrison | Triggered checkpoint 1038 | -9/Garrison | Core integrity fell below 50% 1055 | -9/Garrison | Core integrity fell below 20% 1060 | -9/Garrison | Destroyed by H-55 Commando with Gauss Rifle Last Messages --------------- 01047_ Slug penetrates Wall. 01047_ Aluminum Leg destroyed. 01049_ Slammed into H-55 Commando. 01049_ Destabilizing: System corrupted (+1). 01050_ Slug penetrates Wall. 01050_ Slammed into H-55 Commando. 01050_ Signal Interpreter broken. 01050_ Destabilizing: Short circuit. 01050_ Penetrated by Slug. 01051_ Slammed into H-55 Commando. 01053_ Penetrated by Slug. 01053_ Slammed into H-55 Commando. 01054_ Destabilizing: Core damaged (-16). 01055_ Slammed into H-55 Commando. 01056_ Penetrated by Slug. 01056_ Imp. Hover Unit destroyed. 01056_ Slammed into H-55 Commando. 01056_ Penetrated by Slug. 01057_ Slammed into H-55 Commando. 01059_ Penetrated by Slug. Map ----- +----------------------------------------------------+ | | | ?????????????????????????????????????????????????? | | ?????????????????????????????????????????????????? | | ?????????????????????????????????????????????????? | | ?????????????????????????????????????????????????? | | ?????????????????????????????????????????????????? | | ?????????????????????????????????????????????????? | | ?????????????????????????????????????????????????? | | ?????????????????????????????????????????????????? | | ?????????????????????????????????????????????????? | | ?????????????????????????????????????????????????? | | ?????????????????????????????????????????????????? | | ?????????????????????????????????????????????????? | | ?????????????????????????????????????????????????? | | ?????????????????????????????????????????????????? | | ?????????????????????????????????????????????????? | | ?????????????????????????????????????????????????? | | ???????????#####?????????????????????????????????? | | ???????????# #?????????????????????????????????? | | ???????????# #?????????????????????????????????? | | ???????????# #?????????????????????????????????? | | ???????????# ########??????????????????????????? | | ???????????# # ;%!% #??????????????????????????? | | ???????????# ###[ h=###+##?????????????????????? | | ???????????# [ #?????????????????????? | | ???????????# h @ #?????????????????????? | | ???????????############## #?????????????????????? | | ???????????????????###### #?????????????????????? | | ???????????????????# ## #?????????????????????? | | ???????????????????# ## #######???????????????? | | ???????????????????# #???????????????? | | ???????????????????# #???????????????? | | ???????????????????############ #???????????????? | | ???????????????????????????????? ?????????????? | | ??????????????????????????????????###????????????? | | ?????????????????????????????????????????????????? | | ?????????????????????????????????????????????????? | | ?????????????????????????????????????????????????? | | ?????????????????????????????????????????????????? | | ?????????????????????????????????????????????????? | | ?????????????????????????????????????????????????? | | ?????????????????????????????????????????????????? | | ?????????????????????????????????????????????????? | | ?????????????????????????????????????????????????? | | ?????????????????????????????????????????????????? | | ?????????????????????????????????????????????????? | | ?????????????????????????????????????????????????? | | ?????????????????????????????????????????????????? | | ?????????????????????????????????????????????????? | | ?????????????????????????????????????????????????? | +----------------------------------------------------+ Best States ------------- Heat Dissipation 28 Energy Generation 10 Energy Capacity 250 Matter Stores 272 Matter Capacity 300 Sight Range 18 Terrain Scan Density 10 Evasion (%) 55 Offensive Hacking 10 Item Schematics ----------------- None Robot Schematics ------------------ None Fabricated ------------ Nothing Alien Tech Used ----------------- None Achievements -------------- Troublemaker Challenges ------------ None Game ------ Seed AntimatterDataCarapace Manual? 0 Play Time 00:13:21 Cumulative 8.4 hours Start 2024.12.26 @ 00:37:43 End 2024.12.26 @ 00:49:44 Sessions 1 Manual Loads 0 Difficulty Rogue Special Mode None Game No. 13 Rogue 6 Adventurer 7 Explorer 0 Win Type - Total 0 Types 0/0/0/0/0/0/0/0/0 Lore% 6 Gallery% 17 Achievement% 16 Wizard Run 0 Options --------- Layout 0 ASCII 0 Keyboard 0 Movement Mouse Keybinds 0 Fullscreen 1 Font 24/Smallcaps Map View 76x50 Zoom Use 0% Tactical HUD 1 Map Filters NONE Filters NONE Steam 1 RUN: 5ad68386-7a30-4da0-9be1-80628e479419